Cogmind - Beta 16 @@@ ROGUE MODE // 2026.01.25 @ 01:17:25 Player: Rainy Days Result: Destroyed by XO-3TX(R) with Subdweller Laser Performance ------------- Evolutions (0) 0 Regions Visited (2) 400 Robots Destroyed (26) 130 Value Destroyed (413) 413 Prototype IDs (0) 0 Alien Tech Used (0) 0 Bonus (-12) -12 TOTAL SCORE: 931 Bonus ------- Friendly Fire -12 Cogmind --------- Core Integrity 0/250 Matter 93/300 Energy 247/265 System Corruption 0% Temperature Cool (6) Movement Rolling (125) Ox3 Location -10/Subcaves Parts ------- > --- POWER (1) -------- Reinforced Ion Engine > --- PROPULSION (2) --- Wheel > --- UTILITY (2) ------ Scrap Shield > --- WEAPON (2) ------- Light Assault Rifle Improved Light Cannon > --- INVENTORY (5) ---- Light Ion Engine Compact Wheel Subdweller Machine Gun Peak State ------------ > --- POWER ------------ Reinforced Ion Engine > --- PROPULSION ------- Wheel Wheel > --- UTILITY ---------- High-capacity Storage Unit Seismic Detector > --- WEAPON ----------- Medium Laser Assault Rifle > --- INVENTORY -------- Light Ion Engine Light Ion Engine Reinforced Ion Engine Reinforced Ion Engine Wheel Wheel Compact Wheel Improved Terrain Scanner Assault Rifle Light Assault Rifle Improved Light Cannon Improved Light Cannon Improved Light Cannon Grenade Launcher [Rating: 10] Favorites ----------- Power Reinforced Ion Engine Engine Reinforced Ion Engine Propulsion Wheel Wheel Wheel Utility High-capacity Storage Unit Device Seismic Detector Storage High-capacity Storage Unit Protection Scrap Shield Weapon Medium Laser Energy Gun Medium Laser Ballistic Gun Assault Rifle Ballistic Cannon Improved Light Cannon Launcher Grenade Launcher Build | -11 -10 -10 ------- Run | Yrd Mat Sub Slots Evolved . | . . . Power . | . . . Propulsion . | . . . Utility . | . . . Weapon . | . . . Parts Attached 14 | 7 4 3 Power 2 | 1 1 . Engine 2 | 1 1 . Core . | . . . Reactor . | . . . Propulsion 3 | 2 . 1 Treads . | . . . Leg . | . . . Wheel 3 | 2 . 1 Hover . | . . . Flight . | . . . Utility 4 | 2 1 1 Device 1 | 1 . . Storage 2 | 1 1 . Processor . | . . . Hackware . | . . . Protection 1 | . . 1 Artifact . | . . . Weapon 5 | 2 2 1 Energy Gun 1 | 1 . . Energy Cannon . | . . . Ballistic Gun 2 | 1 1 . Ballistic Cannon 1 | . . 1 Launcher 1 | . 1 . Special Weapon . | . . . Impact Weapon . | . . . Slashing Weapon . | . . . Piercing Weapon . | . . . Special Melee Weapon . | . . . Unidentified Prototypes . | . . . Parts Lost 6 | . 2 4 Power . | . . . Propulsion 2 | . 1 1 Utility 1 | . 1 . Weapon 3 | . . 3 Highest Loss Streak 4 | . 2 4 To Critical Strikes . | . . . Average Backups 11 | 2 11 15 Power 2 | . 2 4 Propulsion 2 | . 3 2 Utility 1 | . 1 1 Weapon 4 | . 4 7 Tool/Special . | . . . Unused Backups 12 | . . 12 Power 3 | . . 3 Propulsion 2 | . . 2 Utility 1 | . . 1 Weapon 6 | . . 6 Tool/Special . | . . . Average Slot Usage (%) 90 | . 99 71 Engine 14 | . 14 14 Wheel 23 | . 28 14 Device 9 | . 13 . Storage 14 | . 14 14 Energy Gun 13 | . 14 11 Ballistic Gun 12 | . 12 12 Launcher 1 | . 1 1 Peak Build Rating 10 | 7 10 10 Average Rating 8 | 5 8 8 On Entrance 5 | . 7 8 Avg Prop Armor Cover (%) . | . . . Naked Turns . | . . . Heaviest Build 56 | 13 56 53 Greatest Support 20 | 20 20 10 Greatest Overweight (x) 5 | 3 5 5 Average Overweight (x) 1 | . 1 5 Largest Inventory Capacity 20 | 8 20 20 Average Capacity 15 | 7 16 19 Most Carried 17 | 7 15 17 Average Carried 11 | 2 11 16 Final Capacity 20 | 8 20 5 Final Carried 15 | 6 15 3 Class Distribution -------------------- 100% | Mutant Dominant Class ---------------- Mutant | -10/Materials Mutant | -10/Subcaves Resources | -11 -10 -10 ----------- Run | Yrd Mat Sub Matter Collected 407 | 293 105 9 Remotely . | . . . Salvage Created 562 | 113 423 26 Parts 36 | 8 26 2 Haulers Intercepted . | . . . Recyclers Shooed 1 | . 1 . Parts Field Recycled . | . . . Retrieved Matter . | . . . Parts Self-Destructed 2 | . . 2 Prevented . | . . . Parts Restored . | . . . Kills | -11 -10 -10 ------- Run | Yrd Mat Sub Combat Hostiles Destroyed 15 | . 11 4 Guns 5 | . 5 . Cannons 1 | . . 1 AOE 9 | . 6 3 Classes Destroyed 8 | 2 5 1 Worker 2 | . 2 . Tunneler 4 | 3 1 . Recycler 2 | 1 1 . Operator 1 | . 1 . Watcher 2 | . 2 . Swarmer 9 | . 6 3 Grunt 5 | . 5 . Subdweller 1 | . . 1 Best Kill Streak 9 | 3 6 9 Combat Bots Only 6 | . 3 6 Max Kills in Single Turn 4 | 1 4 1 Gunslinging . | . . . Exploded 3 | . 3 1 Melee . | . . . Uniques/NPCs Destroyed . | . . . Combat | -11 -10 -10 -------- Run | Yrd Mat Sub Hostile Shots Fired 100 | . 68 32 Missed 32 | . 22 10 Hits 68 | . 46 22 Projectile 68 | . 46 22 Critical Strikes 1 | . 1 . Damage Taken 879 | . 543 336 Core 260 | . 172 88 Absorbed by Shields . | . . . Core Remaining (%) 100 | 100 . . Volleys Fired 62 | 11 35 16 Largest 2 | 2 2 2 Hottest 70 | 70 70 70 Shots Fired 112 | 22 61 29 Gun 92 | 22 53 17 Cannon 9 | . . 9 Launcher 11 | . 8 3 Special . | . . . Kinetic 61 | 11 27 23 Thermal 40 | 11 26 3 Explosive 11 | . 8 3 Electromagnetic . | . . . Robot Hit Streak 7 | 7 7 7 Robot Miss Streak 5 | 3 5 2 Penetration Max . | . . . Secondary Targets . | . . . Shots Hit Robots 67 | 14 34 19 Core Hits 50 | 5 32 13 Critical Kills . | . . . Critical Parts Destroyed . | . . . Critical Strikes 7 | 1 3 3 Burn 5 | 1 3 1 Destroy 1 | . . 1 Blast 1 | . . 1 Melee Attacks . | . . . Impact . | . . . Slashing . | . . . Piercing . | . . . Sneak Attacks . | . . . Combat Hostiles . | . . . Follow-up Attacks . | . . . Damage Inflicted 1655 | 169 991 495 Guns 716 | 169 432 115 Cannons 167 | . . 167 Explosions 768 | . 555 213 Melee . | . . . Ramming 4 | . 4 . Kinetic 499 | 48 193 258 Thermal 384 | 121 239 24 Explosive 768 | . 555 213 Electromagnetic . | . . . Impact . | . . . Slashing . | . . . Piercing . | . . . Highest Corruption . | . . . Average Corruption . | . . . Corruption Purged . | . . . Corruption Blocked . | . . . Overload Shots . | . . . Overflow Damage 18 | . 18 . Projectiles . | . . . Explosions 18 | . 18 . Melee . | . . . Knockbacks 2 | . . 2 Impact . | . . . Kinetic 2 | . . 2 Secondary . | . . . Self-Inflicted Damage 53 | . 53 . Shots 2 | . 2 . Rammed 1 | . 1 . Targets Rammed 1 | . 1 . Kicked . | . . . Crushed . | . . . Highest Temperature 180 | 63 180 11 Average Temperature 49 | 27 57 11 Received Heat Transfer 306 | . 198 108 Siege Activations . | . . . Martial Activations . | . . . Shielding Activations . | . . . Robots Disrupted . | . . . Combat Hostiles . | . . . Robots Corrupted . | . . . Combat Hostiles . | . . . Parts Fried . | . . . Impact Corruptions . | . . . Robots Melted . | . . . Combat Hostiles . | . . . Parts Melted 5 | 3 2 . Heat Transferred 1517 | 444 925 148 Parts Sabotaged . | . . . Parts Stolen . | . . . Parts Stripped . | . . . Power Chain Reactions . | . . . Alert | -11 -10 -10 ------- Run | Yrd Mat Sub Maximum Alert Level 1 | . 1 . Low Security (%) 98 | 100 98 . Level 1 1 | . 1 . Level 2 . | . . . Level 3 . | . . . Level 4 . | . . . Level 5 . | . . . High Security . | . . . Max Security . | . . . Peak Influence 225 | 15 225 . Initial 3 | . 3 . Average 32 | 3 38 . Influence Increases 456 | 20 346 90 Destroy 0b10 Robot/C 280 | . 220 60 Destroy 0b10 Robot/NC 55 | 20 35 . Destroy Leader 44 | . 44 . Successful Hack 9 | . 9 . Disable Machine 15 | . 15 . Destroy Structure 8 | . 8 . Lose Combat Pursuer 45 | . 15 30 Influence Decreases 380 | 15 126 239 Entered New Map 111 | . 2 109 Time Decay 209 | 15 104 90 Lost Part 60 | . 20 40 Squads Dispatched 3 | . 3 . Investigation 2 | . 2 . Extermination . | . . . Reinforcement 1 | . 1 . Assault . | . . . Garrison . | . . . Intercept . | . . . Searches Triggered . | . . . Construction Impeded . | . . . Haulers Reinforced . | . . . Active Scanning Responses . | . . . Cargo Convoy Interrupts . | . . . Stealth | -11 -10 -10 --------- Run | Yrd Mat Sub Distress Signals 1 | . 1 . Communications Jammed . | . . . Distress Signals . | . . . Times Spotted 33 | . 19 14 Peak Tracking Total 7 | . 7 6 Tactical Retreats 2 | . 1 1 Traps | -11 -10 -10 ------- Run | Yrd Mat Sub Traps Triggered 2 | . 2 . Indirectly . | . . . Trap Hack Attempts . | . . . Triggered . | . . . Disarmed . | . . . Reprogrammed . | . . . Reused . | . . . Traps Extracted . | . . . Installed . | . . . Triggered . | . . . Machines | -11 -10 -10 ---------- Run | Yrd Mat Sub Machines Disabled 4 | . 1 3 Max in Single Turn 2 | . 1 2 Machines Repaired . | . . . Machines Dismantled . | . . . Machines Sabotaged . | . . . Overloaded Fab Kills . | . . . Hacking | -11 -10 -10 --------- Run | Yrd Mat Sub Machines Accessed 4 | . 4 . Terminals 4 | . 4 . Fabricators . | . . . Repair Stations . | . . . Recycling Units . | . . . Scanalyzers . | . . . Garrison Access . | . . . Total Hacks 8 | . 8 . Successful 5 | . 5 . Failed 3 | . 3 . Catastrophic . | . . . Database Lockouts . | . . . Manual 8 | . 8 . Terminals 8 | . 8 . Fabricators . | . . . Repair Stations . | . . . Recycling Units . | . . . Scanalyzers . | . . . Garrison Access . | . . . Terminal Hacks . | . . . Fabricator Hacks . | . . . Repair Station Hacks . | . . . Recycling Unit Hacks . | . . . Scanalyzer . | . . . Garrison Access Hacks . | . . . Unauthorized Hacks 4 | . 4 . Terminals 4 | . 4 . Botnet 3 | . 3 . Skim 1 | . 1 . Fabricators . | . . . Repair Stations . | . . . Recycling Units . | . . . Scanalyzers . | . . . Garrison Access . | . . . Data Cores Recovered . | . . . Used . | . . . Hacking Detections 4 | . 4 . Full Trace Events . | . . . Feedback Events . | . . . Feedback Blocked . | . . . Robot Schematics Acquired . | . . . Robots Built . | . . . Authchips . | . . . Time . | . . . Total Robot Build Rating . | . . . Part Schematics Acquired . | . . . Parts Built . | . . . Authchips . | . . . Time . | . . . Total Part Build Rating . | . . . Part Studies Acquired . | . . . Parts Repaired . | . . . Time . | . . . Parts Recycled . | . . . Recycled Matter . | . . . Retrieved Matter . | . . . Retrieved Components . | . . . Parts Scanalyzed . | . . . Part Schematics Acquired . | . . . Parts Damaged . | . . . Bothacking | -11 -10 -10 ------------ Run | Yrd Mat Sub Used RIF Installer . | . . . Robots Hacked . | . . . Non-combat . | . . . Combat . | . . . Robot Hacks Applied . | . . . Relay Couplers Released . | . . . Fabnet Peak Effective % . | . . . Robots Rewired . | . . . Allies Hacked . | . . . Hacks Repelled . | . . . Allies | -11 -10 -10 -------- Run | Yrd Mat Sub Total Allies . | . . . Largest Group . | . . . Highest-Rated Group . | . . . Highest-Rated Ally . | . . . Total Orders . | . . . Ally Attacks . | . . . Total Damage . | . . . Kills . | . . . Allies Corrupted . | . . . Allies Melted . | . . . Intel | -11 -10 -10 ------- Run | Yrd Mat Sub Active Infowar (turns) 413 | 2 411 . Seismic 413 | 2 411 . Robot Analysis Total . | . . . Derelict Logs Recovered . | . . . Drone Launches . | . . . Drone Recoveries . | . . . Exploration | -11 -10 -10 ------------- Run | Yrd Mat Sub Turns Passed 706 | 99 427 180 Spaces Moved 418 | 60 275 83 Core 4 | 4 . . Treads . | . . . Legs . | . . . Wheels 414 | 56 275 83 Hover . | . . . Flight . | . . . Fastest Speed 50 | 50 80 155 Average Speed 106 | 81 97 155 Slowest Speed 200 | 200 155 155 Overloaded Moves . | . . . Propulsion Burnouts . | . . . Robots Hopped . | . . . Potential Cave-ins . | . . . Cave-ins Triggered . | . . . Exploration Rate (%) 24 | 5 61 7 Regions Visited 2 Branch Regions 1 Pre-discovered Areas . | . . . Known Exits Taken . | . . . Unknown Exits Taken 2 | 1 1 . Scrap Searched . | . . . Spaces Dug . | . . . Terrain Destroyed 12 | . 8 4 Melee . | . . . Projectile . | . . . AOE 12 | . 8 4 Terrain Rammed . | . . . Walls Destroyed . | . . . Machines Disabled . | . . . Actions | -11 -10 -10 --------- Run | Yrd Mat Sub Total 565 | 84 373 108 Wait 47 | . 47 . Move 416 | 59 274 83 Hop . | . . . Pick Up 19 | 7 9 3 Fast Attach 6 | 6 . . Attach 6 | 1 . 5 Detach . | . . . Swap 5 | . 5 . Drop 3 | . 2 1 Fire 62 | 11 35 16 Melee . | . . . Ram 1 | . 1 . Kick . | . . . Crush . | . . . Escape Stasis . | . . . Rewire . | . . . Trap . | . . . Miscellaneous . | . . . Route ------- -11/Scrapyard -10/Materials (discovered 4 exits: [*Mat] / [*Min x2] / [*Sub]) -10/Subcaves (discovered 1 exit: [*Rec]) History --------- Turn | Location | Event 21 | -11/Scrapyard | Discovered new exit (range 16) 100 | -11/Scrapyard | Entered Materials 201 | -10/Materials | Discovered new exit (range 12) 261 | -10/Materials | Discovered new exit (range 9) 317 | -10/Materials | Build established: Mutant 319 | -10/Materials | Discovered new exit (range 6) 470 | -10/Materials | Core integrity fell below 50% 520 | -10/Materials | Discovered new exit (range 5) 527 | -10/Materials | Entered Subcaves 527 | -10/Subcaves | Discovered new exit (range 14) 528 | -10/Subcaves | Approached by a straggling Scientist 529 | -10/Subcaves | Shifting Twisted Machinery released Sub. Machine Gun 531 | -10/Subcaves | Shifting Twisted Machinery released Riot Gun 563 | -10/Subcaves | Lost 4 parts (2n1u1w) 674 | -10/Subcaves | Ambushed by swarm of Subdwellers 679 | -10/Subcaves | Ambushed by Subdwellers from Twisted Machinery 692 | -10/Subcaves | Core integrity fell below 20% 707 | -10/Subcaves | Destroyed by XO-3TX(R) with Subdweller Laser Last Messages --------------- to Scrap Shield. 00689_ HV Slug penetrates NH-CR1(R). 00694_ NH-CR1(R) destroyed. 00695_ Subatomizers dissect the Lgt. Ion Engine. 00695_ HV Slug penetrates Wall. 00697_ TT-SCL(R): "NAT20!" 00697_ WZ-SC7(R) knocked back. 00699_ NT-8YP(R) affixes Scrap Shield Fragment to Scrap Shield. 00700_ TT-SCL(R) knocked back. 00700_ HV Slug penetrates V3-64G(R). 00700_ NT-8YP(R) knocked back. 00703_ NT-8YP(R) Sub. Beam Cannon blasted off. 00703_ HV Slug penetrates Wall. 00703_ TT-SCL(R) affixes Scrap Shield Fragment to Scrap Shield. 00704_ V3-64G(R) affixes Scrap Shield Fragment to Scrap Shield. 00706_ Dropped Hcp. Storage Unit. 00706_ TT-SCL(R) destroyed. Map ----- +----------------------------------------------------+ | ?????????????????????????????????????????????????? | | ?????????????????????????????????????????????????? | | ?????????????????????????????????????????????????? | | ?????????????????????????????????????????????????? | | ?????????????????????????????????????????????????? | | ?????????????????????????????????????????????????? | | ?????????????????????????????????????????????????? | | ?????????????????????????????????????????????????? | | ?????????????????????????????????????????????????? | | ?????????????????????????????????????????????????? | | ?????????????????????????????????????????????????? | | ?????????????????????????????????????????????????? | | ?????????????????????????????????????????????????? | | ?????????????????????????????????????????????????? | | ?????????????????????????????????????????????????? | | ????????????? ??????????????????????????????????? | | ????????????? ?????????????????????????????????? | | ????????????? #???????????????????????????????? | | ?????????????# ##?????????????????????????????? | | ?????????????# ###??????????????????????????? | | ??????????????# ###???????????????????????? | | ???????????????# ##??????????????????????? | | ???????????????? #??????????????????????? | | ????????????####???# [##?????????????????????? | | ???????????? #???# &]]!#?????????????????????? | | ????????????# #???## =*@*#?????????????????????? | | ???????????? #????####[]##?????????????????????? | | ???????????## ????###&h*#??????????????????????? | | ???????????? #??### ##R%#??????????????????????? | | ???#####?#### ??# !&%]??????????????????????? | | ??? ## ##?## RR%#??????????????????????? | | ??? #?# *% ##??????????????????????? | | ????? #### #&##???????????????????????? | | ????? # # " ?????????????????????????? | | ????????? ## ##?????????????????????????? | | ?????????# ## #??????????????????????????? | | ????????## """"#??????????????????????????? | | ###### ########??????????????????????????? | | #?????????????????????????????????? | | "##????????????????????????????????? | | # " ##???????????????????????????????? | | # ?### " ##???###????????????????????????? | | ## #????##### "####" #????????????????????????? | | ?##?????????## """ ## ""#????????????????????????? | | ????????????# " "#????????????????????????? | | ????????????# " "#????????????????????????? | | ????????????## ## ##????????????????????????? | | ????????????## ### #?????????????????????????? | | ????????????# # # ##?????????????????????????? | | ????????????# ##??????????????????????????? | +----------------------------------------------------+ Best States ------------- Heat Dissipation 25 Energy Generation 12 Energy Capacity 265 Matter Stores 300 Matter Capacity 300 Sight Range 16 Terrain Scan Density 10 Evasion (%) 44 Item Schematics ----------------- None Robot Schematics ------------------ None Fabricated ------------ Nothing Repaired ---------- Nothing Studied --------- None Alien Tech Used ----------------- None Achievements -------------- None Challenges ------------ None Game ------ Seed SuspensionSeismicWall Manual? 0 Play Time 00:11:55 Cumulative 191.7 hours Start 2026.01.25 @ 01:06:22 End 2026.01.25 @ 01:17:25 Sessions 1 Manual Loads 0 Difficulty Rogue Special Mode None Game No. 68 Rogue 68 Adventurer 0 Explorer 0 Win Type - Total 4 Types 2/0/1/0/0/1/0/0/0/0 Lore% 37 Gallery% 59 Achievement% 41 Wizard Run 0 Options --------- Layout 2 ASCII 0 Keyboard 0 Movement Numpad Keybinds 0 Fullscreen 1 Font 24/Smallcaps Map View 50x44 Zoom Use 0% Tactical HUD 1 Map Filters NONE Filters NONE Steam 1 RUN: b2a6697b-1e59-434a-b308-c86bb7df862f